bitfinex/quotes_ETHUSD_20260106
["timestamp","ask_amount","ask_price","bid_price","bid_amount"]
[1767691994458,3.10370145,3222.0,3221.4,0.001]
[1767691998360,4.0566376,3222.1,3221.4,0.001]
[1767692000369,4.05478166,3221.9,3221.4,0.001]
[1767692001851,4.05478166,3221.9,3221.7,0.001]
[1767692002150,4.77082129,3221.9,3221.4,0.001]
[1767692002761,0.95102301,3221.8,3221.4,0.001]
[1767692003575,3.81979828,3221.9,3221.4,0.001]
[1767692003981,4.77082129,3221.9,3221.4,0.001]
[1767692004478,0.95102301,3221.7,3220.8,0.91842371]
[1767692004681,0.95102301,3221.5,3220.8,0.001]
[1767692006980,0.95102301,3221.3,3220.8,0.001]
[1767692009090,0.95102301,3221.2,3220.8,0.001]
[1767692009650,0.95102301,3221.1,3220.8,0.001]
[1767692010782,3.1044994,3221.2,3220.8,0.001]
[1767692011186,0.99940425,3221.1,3220.8,0.001]
[1767692011992,3.10438207,3221.3,3220.8,0.001]
[1767692012285,4.10365964,3221.4,3220.8,0.001]
[1767692012490,3.91718346,3221.5,3220.8,0.98925322]
[1767692012678,3.91718346,3221.5,3220.9,1.01930044]
[1767692013655,3.91718346,3221.5,3220.9,0.98825322]
[1767692013888,4.91658771,3221.5,3220.8,0.001]
[1767692014076,4.91658771,3221.5,3221.1,0.001]
[1767692014749,0.99940425,3221.4,3221.1,0.001]
[1767692014953,0.99940425,3221.4,3220.8,0.001]
[1767692015155,0.99940425,3221.4,3220.3,0.98825322]
[1767692015355,0.99940425,3221.4,3220.3,1.78071223]
[1767692016193,0.99940425,3221.4,3220.3,4.88599127]
[1767692017296,0.99940425,3221.2,3220.4,0.98825322]
[1767692017988,8.55496028,3221.5,3220.4,0.98825322]
[1767692017989,3.10428816,3221.4,3220.4,0.98825322]
[1767692019901,3.10428816,3221.4,3220.5,0.98825322]
[1767692020195,3.10428816,3221.4,3220.7,0.98825322]
[1767692020578,4.10369241,3221.4,3220.7,0.98825322]
[1767692021000,0.99940425,3221.3,3220.4,3.1051172]
[1767692021205,0.99940425,3221.3,3220.4,4.09337042]
[1767692022512,0.99940425,3221.2,3220.4,4.09337042]
[1767692022687,0.99940425,3221.2,3220.5,0.48858294]
[1767692023012,0.99940425,3221.2,3220.5,1.47683616]
[1767692023206,0.99940425,3221.2,3220.5,1.42932564]
[1767692026217,0.99940425,3221.2,3220.6,0.001]
[1767692026585,0.002,3221.1,3220.6,0.001]
[1767692026913,0.002,3221.1,3220.6,0.45454428]
[1767692027481,0.002,3221.1,3220.6,0.001]
[1767692029013,1.00140425,3221.1,3220.6,0.001]
[1767692029488,0.002,3221.1,3220.6,0.001]
[1767692031724,0.99940425,3220.7,3219.9,3.10562413]
[1767692031882,0.99940425,3220.7,3219.9,1.39764096]
[1767692032086,0.99940425,3220.7,3219.9,0.98825322]
[1767692033619,4.10441573,3220.6,3219.9,0.98825322]
[1767692037023,0.93123562,3220.9,3219.9,0.98825322]
[1767692037205,0.814,3220.8,3219.9,0.98825322]
[1767692037523,1.74523562,3220.8,3219.9,0.98825322]
[1767692037726,1.74523562,3220.8,3220.0,1.36033968]
[1767692038506,3.10491508,3220.7,3220.2,0.001]
[1767692038915,0.002,3220.4,3220.2,0.001]
[1767692039118,0.93123562,3220.6,3220.2,0.001]
[1767692040532,0.93123562,3220.6,3219.6,0.95094082]
[1767692040533,0.93123562,3220.4,3219.6,0.95094082]
[1767692040824,0.93123562,3220.4,3219.4,0.95094082]
[1767692041027,0.93123562,3220.4,3219.4,1.35665437]
[1767692041225,0.93123562,3220.4,3219.4,4.46281617]
[1767692041433,0.93123562,3220.4,3219.6,0.91434421]
[1767692041997,0.93123562,3220.4,3219.6,4.02028848]
[1767692043896,4.03646777,3220.4,3219.6,0.91434421]
[1767692044233,4.03646777,3220.4,3219.5,3.10602337]
[1767692044234,0.97023237,3220.3,3219.5,3.10602337]
[1767692044428,0.97023237,3220.3,3219.5,0.66179796]
[1767692044742,0.97023237,3220.3,3219.5,1.57614217]
[1767692045234,0.97023237,3220.3,3219.6,0.91434421]
[1767692045438,4.07554,3220.3,3219.6,0.91434421]
[1767692045601,0.97023237,3220.2,3219.1,0.91434421]
[1767692045806,0.97023237,3220.2,3219.2,0.91434421]
[1767692046230,0.97023237,3220.2,3219.3,0.91434421]
[1767692047341,0.97023237,3220.2,3219.4,0.91434421]
[1767692047553,4.07567981,3220.2,3219.4,0.91434421]
[1767692048738,3.10544744,3220.2,3219.4,0.91434421]
[1767692049928,0.97023237,3220.1,3219.4,0.91434421]
[1767692050134,4.07577003,3220.1,3219.4,0.91434421]
[1767692051416,4.07577003,3220.1,3219.6,0.001]
[1767692053442,3.10543328,3220.2,3219.6,0.91534421]
[1767692060166,3.10543328,3220.2,3219.6,0.2102046]
[1767692060344,0.80105189,3220.1,3219.6,0.2102046]
[1767692060746,1.77128426,3220.1,3219.2,0.91434421]
[1767692061158,3.10559006,3220.0,3219.2,0.91434421]
[1767692062546,4.07582243,3220.0,3219.2,0.91434421]
[1767692062747,0.97023237,3219.7,3218.8,3.10670164]
[1767692062946,0.97023237,3219.7,3218.9,0.31067016]
[1767692063172,0.97023237,3219.6,3218.7,4.02118858]
[1767692063579,0.97023237,3219.6,3218.8,0.91434421]
[1767692064652,3.10593211,3219.7,3219.5,0.001]
[1767692064978,3.10593211,3219.7,3218.9,0.91434421]
[1767692065177,4.07603853,3219.8,3219.0,0.91434421]
[1767692066984,0.97023237,3219.7,3219.0,0.91434421]
[1767692067282,0.97023237,3219.7,3219.0,1.31644169]
[1767692067672,0.97023237,3219.9,3219.1,0.91434421]
[1767692068547,0.97023237,3219.9,3218.9,3.10663058]
[1767692068548,0.97023237,3219.7,3218.9,0.91434421]
[1767692068752,0.97023237,3219.7,3218.3,0.91434421]
[1767692068982,4.07620826,3219.6,3218.5,0.91434421]
[1767692069177,0.97023237,3219.5,3218.6,1.62720543]
[1767692069353,0.97023237,3219.5,3218.6,0.71286122]
[1767692069548,0.97023237,3219.5,3218.6,1.62720543]
[1767692069756,0.97023237,3219.5,3218.7,0.91434421]
[1767692071286,0.97023237,3219.5,3218.8,3.10674785]
[1767692071474,0.97023237,3219.5,3218.9,0.40210921]
[1767692071979,4.89097332,3219.8,3218.9,1.32477388]
[1767692072279,0.97114136,3219.7,3218.9,1.32477388]
[1767692072882,0.97114136,3219.7,3219.0,0.92266467]
[1767692073285,4.07703051,3219.7,3219.0,0.92266467]
[1767692074184,0.97114136,3219.7,3219.0,0.92266467]
[1767692075482,0.98668862,3219.6,3218.5,0.92266467]
[1767692075850,0.98668862,3219.6,3218.6,0.92266467]
[1767692076560,0.98668862,3219.6,3218.4,3.10710187]
[1767692077692,0.97114136,3219.4,3218.3,3.10722456]
[1767692077988,0.97114136,3219.4,3218.5,0.92266467]
[1767692080392,3.10607237,3219.5,3218.7,0.92266467]
[1767692081094,0.97114136,3219.6,3218.7,0.92266467]
[1767692081301,1.16468621,3219.7,3218.7,0.92266467]
[1767692081594,5.24177131,3219.7,3218.7,0.92266467]
[1767692081773,0.80105189,3219.6,3218.7,0.92266467]
[1767692083776,0.80105189,3219.6,3218.8,0.92266467]
[1767692083977,3.90702954,3219.6,3218.8,0.92266467]
[1767692086896,0.80105189,3219.6,3218.9,0.92266467]
[1767692087095,1.78714136,3219.7,3218.9,0.92266467]
[1767692087303,4.89303066,3219.7,3218.9,0.92266467]
[1767692089178,0.97114136,3219.6,3218.9,0.92266467]
[1767692089768,0.97114136,3219.6,3218.6,0.92266467]
[1767692090668,0.97114136,3219.6,3218.7,0.002]
[1767692090870,0.97114136,3219.4,3218.7,0.002]
[1767692091066,0.97114136,3219.2,3218.7,0.002]
[1767692091275,0.98668862,3219.2,3218.7,0.002]
[1767692092305,0.98668862,3219.2,3218.2,3.10731435]
[1767692092306,0.97114136,3219.1,3218.2,3.10731435]
[1767692093082,4.07763494,3219.1,3218.3,0.92266467]
[1767692093282,0.97114136,3219.0,3218.3,0.92266467]
[1767692095127,0.97114136,3218.1,3216.4,3.10901196]
[1767692095310,0.97114136,3218.1,3216.6,3.10886358]
[1767692095311,0.94199489,3217.5,3216.6,3.10886358]
[1767692095512,0.94199489,3218.4,3216.7,1.26232135]
[1767692095692,18.79806113,3219.0,3216.8,0.95143499]
[1767692095693,0.94199489,3218.8,3216.8,0.95143499]
[1767692095888,12.42641064,3219.0,3216.8,0.96698225]
[1767692095889,0.94199489,3218.3,3216.8,0.96698225]
[1767692096320,0.814,3218.2,3216.8,0.96698225]
[1767692096527,0.94199489,3218.1,3216.8,0.95143499]
[1767692096715,1.11759438,3218.1,3216.8,0.95143499]
[1767692097114,0.94199489,3217.9,3216.8,4.06008213]
[1767692097423,0.94199489,3217.9,3216.8,0.95143499]
[1767692097593,0.94199489,3217.9,3216.6,3.10884717]
[1767692098306,0.94199489,3217.9,3216.6,4.06028216]
[1767692098520,0.94199489,3217.7,3216.7,0.40602822]
[1767692099031,1.97880901,3217.6,3216.7,0.40602822]
[1767692099324,1.97880901,3217.6,3216.7,3.51480248]
[1767692099532,0.94199489,3217.5,3215.9,0.22904025]
[1767692099730,4.14474691,3217.6,3215.2,7.75308339]
[1767692099731,0.94199489,3217.3,3216.3,0.95143499]
[1767692100035,0.94199489,3217.2,3216.7,3.10876836]
[1767692100197,0.94199489,3217.2,3216.7,3.10877276]
[1767692100401,1.75599489,3217.5,3216.5,0.95143499]
[1767692100610,0.2792809,3217.4,3216.6,3.10884442]
[1767692100927,0.94199489,3217.3,3215.9,0.95143499]
[1767692101133,0.94199489,3217.3,3215.4,0.98822689]
[1767692101134,0.94199489,3217.3,3216.1,0.95143499]
[1767692101300,0.94199489,3217.3,3216.3,0.9839756]
[1767692103002,0.75579412,3217.5,3216.5,0.9839756]
[1767692103221,2.05435351,3217.5,3216.6,1.01506432]
[1767692103533,2.05435351,3217.5,3216.6,0.9839756]
[1767692103732,0.98193228,3217.9,3216.6,0.9839756]
[1767692104125,0.814,3217.8,3216.6,0.9839756]
[1767692104324,0.814,3217.8,3217.0,0.002]
[1767692104723,0.98193228,3217.7,3217.0,0.002]
[1767692105837,0.98193228,3217.6,3217.0,0.002]
[1767692106517,0.98193228,3217.5,3217.0,0.002]
[1767692106947,0.98193228,3217.5,3216.0,0.9839756]
[1767692107259,0.98193228,3217.3,3215.5,1.7979756]
[1767692107441,0.98193228,3217.1,3215.6,13.95687252]
[1767692107642,1.79593228,3217.2,3215.7,0.9839756]
[1767692107846,0.98193228,3217.1,3215.8,1.49408481]
[1767692108149,0.98193228,3217.1,3215.6,6.21967906]
[1767692108347,0.95338576,3217.1,3215.6,6.21967906]
[1767692108956,0.95338576,3217.1,3215.6,13.95687252]
[1767692109272,0.98193228,3216.7,3215.2,3.11022642]
[1767692109433,0.98193228,3216.6,3215.3,0.4094202]
[1767692111358,4.09053899,3216.9,3215.6,0.9839756]
[1767692111858,0.98193228,3216.8,3215.6,0.9839756]
[1767692113161,0.98193228,3216.8,3215.5,3.10993624]
[1767692113753,0.98193228,3216.6,3215.4,4.09392487]
[1767692113950,0.98193228,3216.6,3215.5,0.45033451]
[1767692114168,0.814,3216.5,3215.5,0.45033451]
[1767692114465,1.79593228,3216.5,3215.5,0.45033451]
[1767692115567,4.90494275,3216.5,3215.5,3.56022031]
[1767692115867,0.98193228,3216.4,3215.5,3.1098858]
[1767692116437,0.98193228,3216.4,3215.0,0.815]
[1767692116638,0.98193228,3216.4,3214.2,0.9839756]
[1767692116860,0.98193228,3216.4,3214.4,0.815]
[1767692117057,0.98193228,3216.4,3215.0,3.11036764]
[1767692117365,0.98193228,3216.2,3215.1,3.11031507]
[1767692117673,0.98193228,3216.0,3215.8,0.00099897]
[1767692117965,0.98193228,3216.0,3214.5,9.33268259]
[1767692117966,0.98193228,3216.0,3214.6,0.9839756]
[1767692118269,0.98193228,3216.0,3215.5,0.002]
[1767692118458,0.40912883,3215.9,3215.5,0.002]
[1767692118965,0.98193228,3216.3,3215.5,0.002]
[1767692119538,8.0147206,3216.6,3215.5,0.9859756]
[1767692119734,0.98193228,3216.5,3215.5,0.9859756]
[1767692121373,0.815,3216.6,3215.6,0.9839756]
[1767692121553,3.92387957,3216.6,3215.7,3.10974282]
[1767692121749,0.815,3216.6,3215.8,0.40937184]
[1767692124178,0.815,3216.6,3215.8,3.51901774]
[1767692124679,0.98193228,3217.1,3215.9,0.9839756]
[1767692124973,1.79693228,3217.1,3216.1,0.9839756]
[1767692126172,1.79693228,3217.1,3216.2,3.10925937]
[1767692126352,0.815,3217.1,3216.3,0.9839756]
[1767692127282,0.001,3217.2,3216.3,0.9839756]
[1767692127782,0.815,3217.6,3216.7,0.9839756]
[1767692128473,4.08948713,3218.0,3216.9,0.9839756]
[1767692128770,4.90448713,3218.0,3217.0,0.72013345]
[1767692128942,1.79693228,3218.0,3217.0,1.70410905]
[1767692129142,0.815,3218.0,3217.1,0.9839756]
[1767692129550,3.92253922,3218.0,3217.1,0.9839756]
[1767692131061,4.9044715,3218.0,3217.0,0.72013345]
[1767692131265,0.9736262,3217.9,3217.0,0.72013345]
[1767692131789,0.001,3217.7,3217.0,0.72013345]
[1767692132080,0.9736262,3217.9,3217.0,0.72013345]
[1767692132454,4.89616542,3218.0,3217.1,0.95573578]
[1767692132654,0.9736262,3217.9,3217.1,0.95573578]
[1767692132857,1.77399666,3217.8,3216.8,0.95573578]
[1767692133052,4.08144344,3217.7,3216.8,4.06440799]
[1767692133254,0.9736262,3217.7,3216.8,4.06440799]
[1767692133654,0.9736262,3217.6,3216.7,3.10876128]
[1767692133855,0.9736262,3217.6,3216.8,3.10867801]
[1767692134076,0.9736262,3217.6,3216.5,0.95573578]
[1767692134281,0.9736262,3217.6,3216.6,0.95573578]
[1767692134659,0.9736262,3217.6,3216.5,3.10891988]
[1767692135177,0.9736262,3217.4,3216.4,4.06480181]
[1767692135489,0.9736262,3217.4,3216.5,0.7988945]
[1767692137698,0.9736262,3217.4,3216.5,3.90776965]
[1767692138266,0.9736262,3217.4,3216.5,4.86350543]
[1767692138568,0.9736262,3217.4,3216.6,0.95573578]
[1767692139278,0.96256633,3217.4,3216.6,0.95573578]
[1767692139465,0.96256633,3217.4,3216.6,1.75299293]
[1767692140168,0.96256633,3217.4,3216.6,4.86184123]
[1767692142103,0.96256633,3217.4,3216.6,3.90610545]
[1767692142401,0.96256633,3217.4,3216.6,0.79725715]
[1767692143468,0.96256633,3217.4,3216.8,0.002]
[1767692149211,0.97811359,3217.4,3216.8,0.002]
[1767692149389,0.9736262,3217.3,3216.8,0.002]
[1767692150077,0.98917346,3217.2,3216.8,0.002]
[1767692151117,0.01554726,3217.0,3216.5,0.95773578]
[1767692151803,0.01554726,3217.0,3216.5,0.002]
[1767692151973,0.98917346,3217.0,3216.5,0.002]
[1767692152312,0.98917346,3216.9,3216.2,0.95573578]
[1767692152612,0.98917346,3216.9,3216.2,2.13230836]
[1767692154915,0.98917346,3216.9,3216.2,0.95573578]
[1767692154916,5.62301407,3216.9,3216.2,0.95573578]
[1767692155084,0.01554726,3216.7,3216.2,0.95573578]
[1767692155485,0.92159473,3216.7,3216.0,0.98174765]
[1767692155684,0.92159473,3216.7,3215.0,3.11040668]
[1767692155685,0.90604747,3215.8,3215.0,3.11040668]
[1767692155883,4.64938787,3216.1,3215.2,0.98174765]
[1767692156380,0.01554726,3215.9,3215.2,0.98174765]
[1767692157001,0.01554726,3215.9,3215.3,0.002]
[1767692158516,0.92159473,3215.9,3215.3,0.002]
[1767692158681,0.92159473,3215.9,3215.3,0.34432597]
[1767692159008,0.01554726,3215.9,3215.3,0.34432597]
[1767692159214,0.92159473,3215.9,3215.3,0.34432597]
[1767692162212,0.91988175,3216.5,3215.4,0.94734355]
[1767692162422,0.01554726,3217.4,3215.3,0.34432597]
[1767692162423,0.90433449,3216.3,3215.3,0.34432597]
[1767692162589,0.90433449,3216.1,3215.3,7.51191274]
[1767692162789,0.01554726,3216.2,3216.0,0.02111713]
[1767692162990,0.01554726,3216.2,3215.5,0.94734355]
[1767692163191,0.01554726,3216.0,3215.5,0.94734355]
[1767692163691,0.01554726,3216.0,3215.4,0.75119127]
[1767692163989,0.01554726,3216.2,3215.6,0.94734355]
[1767692164184,0.01554726,3216.2,3215.6,1.42818901]
[1767692164386,0.91988175,3216.2,3215.6,0.48084546]
[1767692165993,0.01554726,3216.0,3215.6,0.48084546]
[1767692166498,0.01554726,3216.0,3215.3,4.05942784]
[1767692167032,0.01554726,3216.0,3215.4,0.94734355]
[1767692167235,0.91988175,3216.0,3215.3,3.11211117]
[1767692168132,0.91988175,3216.0,3215.3,0.002]
[1767692168427,0.01554726,3216.0,3215.3,0.94934355]
[1767692168630,0.01554726,3216.0,3215.4,1.35330055]
[1767692169301,0.01554726,3216.0,3215.5,0.94734355]
[1767692169502,0.01554726,3216.2,3215.5,0.94734355]
[1767692169810,0.01122317,3216.2,3215.5,0.94734355]
[1767692170762,0.01122317,3216.2,3215.7,0.002]
[1767692172615,0.01554726,3216.2,3215.7,0.002]
[1767692173539,0.01554726,3216.2,3215.7,0.94934355]
[1767692175238,0.91988175,3216.0,3215.4,0.002]
[1767692175438,1.47680871,3216.0,3215.4,0.002]
[1767692175641,0.91988175,3216.0,3215.4,0.94934355]
[1767692175838,0.01554726,3216.0,3215.4,0.94934355]
[1767692176917,0.01554726,3215.8,3215.4,0.002]
[1767692177132,0.91988175,3215.8,3215.3,0.002]
[1767692177738,3.10974282,3215.7,3215.3,0.002]
[1767692180835,0.01554726,3215.6,3215.0,1.25794355]
[1767692181152,0.01554726,3215.6,3215.0,0.94734355]
[1767692183062,0.01554726,3215.6,3214.8,0.94734355]
[1767692183063,0.91988175,3215.6,3214.8,0.94734355]
[1767692183221,0.90433449,3215.5,3214.8,0.94734355]
[1767692184854,0.90433449,3215.5,3215.3,0.002]
[1767692186132,0.01554726,3215.6,3215.3,0.002]
[1767692187742,3.12539775,3215.6,3215.3,0.002]
[1767692187943,3.84089205,3215.6,3215.3,0.002]
[1767692188156,0.90433449,3215.5,3215.0,0.002]
[1767692190722,0.01554726,3215.6,3215.0,0.002]
[1767692190919,0.90433449,3215.7,3215.0,0.94934355]
[1767692191252,0.01554726,3215.8,3215.1,0.94734355]
[1767692191554,3.12519421,3215.8,3215.1,0.94734355]
[1767692191737,0.01554726,3215.8,3215.1,0.94734355]
[1767692192147,0.97807787,3216.3,3215.3,0.94931722]
[1767692192327,0.97807787,3216.3,3215.5,0.94931722]
[1767692193235,0.01554726,3216.2,3215.5,0.94931722]
[1767692193748,0.01554726,3216.2,3215.5,4.05925279]
[1767692193947,0.01554726,3216.2,3215.6,0.94931722]
[1767692194545,0.97807787,3216.3,3215.6,0.94931722]
[1767692194852,0.97807787,3216.3,3215.4,3.66831622]
[1767692195157,0.97807787,3216.3,3215.5,3.78774683]
[1767692195458,4.10269972,3216.4,3215.6,0.94931722]
[1767692195655,0.97807787,3216.3,3215.6,0.94931722]
[1767692195837,0.97807787,3216.3,3215.5,0.67784406]
[1767692196355,0.97807787,3215.9,3215.1,4.77931722]
[1767692196533,0.97807787,3215.9,3215.2,0.94931722]
[1767692197238,0.99362513,3215.8,3215.1,3.83]
[1767692197761,0.99362513,3215.8,3215.3,0.002]
[1767692197943,0.97807787,3215.7,3215.3,0.002]
[1767692198659,0.01554726,3215.5,3215.3,0.002]
[1767692200791,0.01386716,3215.5,3215.3,0.002]
[1767692201463,0.97807787,3215.6,3215.3,0.002]
[1767692202247,0.99362513,3215.6,3215.3,0.002]
[1767692206479,0.97807787,3215.5,3215.3,0.002]
[1767692206885,0.97807787,3215.3,3213.1,9.30131722]
[1767692207073,0.97807787,3215.3,3213.8,0.94931722]
[1767692207384,0.97807787,3215.3,3214.4,3.11096977]
[1767692207580,0.97807787,3215.2,3214.4,3.11096977]
[1767692208350,0.97807787,3215.2,3214.4,4.06031771]
[1767692208551,0.97807787,3215.2,3214.5,0.71714128]
[1767692208752,3.11004005,3215.4,3214.6,0.94931722]
[1767692208753,0.97807787,3215.4,3214.6,0.94931722]
[1767692209489,0.97807787,3215.8,3214.6,0.94931722]
[1767692210180,0.97807787,3215.8,3214.8,0.94931722]
[1767692210377,0.97807787,3215.8,3215.0,0.94931722]
[1767692210582,0.001,3215.6,3215.1,1.35530061]
[1767692211068,0.001,3215.6,3215.2,0.01815407]
[1767692211265,0.001,3215.6,3215.1,1.35530061]
[1767692212566,0.97807787,3215.5,3215.1,0.40598339]
[1767692212771,0.97807787,3215.5,3214.9,3.11050504]
[1767692213491,0.97807787,3215.5,3214.7,0.002]
[1767692215091,0.97807787,3215.5,3214.7,3.11269128]
[1767692218581,0.97807787,3215.5,3214.8,0.97982115]
[1767692218788,0.97807787,3215.5,3214.9,0.72032226]
[1767692220497,0.97807787,3215.5,3214.9,3.83081974]
[1767692220816,0.91941541,3215.4,3214.7,0.002]
[1767692221010,0.91941541,3215.4,3214.4,0.98182115]
[1767692221299,0.91941541,3215.4,3214.4,0.98102784]
[1767692221600,0.94105734,3215.2,3214.4,0.002]
[1767692221775,2.47218901,3215.2,3214.4,0.98102784]
[1767692222397,0.94105734,3215.1,3214.4,0.98102784]
[1767692223199,0.94105734,3215.1,3214.4,0.002]
[1767692223498,0.94105734,3215.1,3214.4,0.98102784]
[1767692224085,4.05222343,3215.3,3214.4,4.09202637]
[1767692224286,0.001,3215.3,3214.6,0.97902784]
[1767692225269,0.001,3215.6,3215.3,0.97902784]
[1767692225469,0.001,3215.6,3214.6,0.97902784]
[1767692225772,0.001,3215.6,3214.8,0.97902784]
[1767692227814,0.001,3215.6,3215.0,0.97902784]
[1767692228020,0.001,3215.6,3215.1,0.97902784]
[1767692231813,0.94205734,3215.6,3214.6,6.22161113]
[1767692232019,0.94205734,3215.6,3214.7,0.97902784]
[1767692233512,0.001,3215.6,3214.7,0.97902784]
[1767692234024,0.001,3215.6,3214.9,0.97902784]
[1767692236214,0.001,3215.6,3215.1,0.002]
[1767692236618,0.001,3215.3,3215.1,0.002]
[1767692236794,0.94205734,3215.6,3215.1,0.002]
[1767692237196,0.001,3215.6,3215.1,0.98102784]
[1767692238420,0.94105734,3215.5,3215.1,0.002]
[1767692240196,0.001,3215.6,3215.1,0.002]
[1767692241125,0.816,3215.6,3215.1,0.002]
[1767692241804,0.816,3215.6,3215.1,0.98102784]
[1767692242003,0.001,3215.6,3215.1,0.98102784]
[1767692243199,0.001,3215.6,3215.1,0.002]
[1767692244931,0.001,3215.6,3215.1,0.98102784]
[1767692245724,1.73705734,3215.7,3215.1,0.98102784]
[1767692245920,4.84682473,3215.7,3215.1,0.98102784]
[1767692246121,0.94105734,3215.6,3215.1,0.002]
[1767692247437,3.90576739,3215.7,3215.1,0.002]
[1767692248849,0.796,3215.7,3215.1,0.98102784]
[1767692249018,0.816,3215.9,3215.3,0.97902784]
[1767692249331,3.92555185,3215.9,3215.3,0.97902784]
[1767692249626,0.001,3215.4,3215.3,0.97902784]
[1767692249833,0.94105734,3215.8,3215.1,0.002]
[1767692250052,0.94105734,3215.8,3215.2,0.4091443]
[1767692250352,3.92555185,3215.9,3215.2,1.38817214]
[1767692250541,3.92555185,3215.9,3215.3,0.97902784]
[1767692253039,4.9086454,3215.9,3215.3,0.97902784]
[1767692258171,0.98309355,3215.8,3215.1,0.002]
[1767692258469,0.98309355,3215.8,3215.2,1.39521384]
[1767692259175,0.98309355,3215.2,3214.4,0.002]
[1767692259336,0.98309355,3215.0,3214.4,0.002]
[1767692260959,6.2210333,3214.9,3214.4,0.002]
[1767692261164,0.98309355,3214.8,3214.4,0.002]
[1767692263160,0.98309355,3214.6,3214.4,0.002]
[1767692264057,3.11071017,3214.7,3214.4,0.002]
[1767692264660,7.20451389,3214.7,3214.4,0.002]
[1767692265139,4.09380372,3214.7,3214.4,0.002]
[1767692265339,0.98309355,3214.6,3214.4,0.002]
[1767692266144,6.22142034,3214.7,3214.4,0.002]
[1767692266345,0.98309355,3214.6,3214.4,0.002]
[1767692266575,6.22142034,3214.7,3214.4,0.002]
[1767692266943,0.98309355,3214.6,3214.4,0.002]
[1767692267165,3.11090371,3214.5,3214.4,0.002]
[1767692272261,0.815,3214.6,3214.4,0.002]
[1767692272851,3.92584785,3214.6,3214.4,0.002]
[1767692273158,7.0366957,3214.6,3214.4,0.002]
[1767692273759,3.92584785,3214.6,3214.4,0.002]
[1767692273959,3.1107594,3214.7,3214.4,0.002]
[1767692276782,3.11061341,3214.8,3214.4,0.002]
[1767692276967,4.09554218,3214.8,3214.4,0.002]
[1767692277172,8.00981944,3214.8,3214.4,0.002]
[1767692277373,0.98492877,3214.7,3214.4,0.002]
[1767692277952,7.02489067,3214.8,3214.4,0.002]
[1767692282082,0.92197868,3214.7,3214.4,0.002]
[1767692282580,3.11080694,3214.6,3214.4,0.002]
[1767692284679,3.11080694,3214.6,3213.5,0.99266267]
[1767692284680,0.92197868,3214.5,3213.5,0.99266267]
[1767692285055,0.92197868,3214.4,3213.1,0.817]
[1767692285469,0.92197868,3214.4,3213.1,1.80966267]
[1767692285787,0.92197868,3214.3,3213.2,0.99266267]
[1767692285974,0.93752594,3214.3,3213.1,0.002]
[1767692286287,0.93752594,3214.3,3213.1,1.40537296]
[1767692286787,0.92197868,3214.1,3213.1,0.41271029]
[1767692289289,3.11138767,3214.0,3213.1,0.41271029]
[1767692289496,3.11138767,3214.0,3213.2,0.99266267]
[1767692292496,4.03331599,3214.1,3213.2,0.99266267]
[1767692293295,0.92197868,3214.0,3213.2,0.99266267]
[1767692293492,0.92197868,3214.0,3213.3,0.87452297]
[1767692293879,0.92197868,3213.9,3213.1,0.99466267]
[1767692294398,3.11141993,3214.0,3213.1,0.99466267]
[1767692296300,3.11129087,3214.1,3213.1,0.99466267]
[1767692297196,3.11129087,3214.1,3213.4,0.99466267]
[1767692297895,7.14456042,3214.1,3213.4,0.99466267]
[1767692298193,0.92197868,3214.0,3213.4,0.99466267]
[1767692298429,0.92197868,3214.0,3213.4,0.002]
[1767692298603,0.92197868,3213.9,3213.4,0.002]
[1767692298893,0.92197868,3213.9,3213.1,0.002]
[1767692298894,0.92197868,3213.7,3213.1,0.002]
[1767692299864,3.11177495,3213.6,3213.1,0.002]
[1767692301293,0.92197868,3213.5,3213.1,0.002]
[1767692301809,3.11177495,3213.6,3213.1,0.002]
[1767692301977,0.71454502,3213.6,3213.1,0.99466267]
[1767692302177,3.11162948,3213.8,3213.1,0.99466267]
[1767692303306,4.03360816,3213.8,3213.1,0.99466267]
[1767692303980,7.14523764,3213.8,3213.1,0.99466267]
[1767692304793,4.03360816,3213.8,3213.1,0.99466267]
[1767692306699,4.82962055,3213.8,3213.1,0.99466267]
[1767692307011,1.71799107,3213.8,3213.1,0.99466267]
[1767692307215,7.74942292,3214.4,3213.2,0.99266267]
[1767692307216,0.92197868,3214.4,3213.2,0.99266267]
[1767692307375,3.92609728,3214.3,3213.4,0.99266267]
[1767692307570,4.0329868,3214.4,3213.4,0.99266267]
[1767692307805,3.11090371,3214.5,3213.5,0.99266267]
[1767692308008,3.92590371,3214.5,3213.7,0.99266267]
[1767692308192,0.92197868,3214.4,3213.6,0.56310216]
[1767692308389,0.92197868,3214.1,3213.1,0.002]
[1767692308678,4.6383589,3214.2,3213.1,0.002]
[1767692308679,0.92197868,3213.9,3213.1,0.002]
[1767692308990,3.92641275,3214.0,3213.1,0.99466267]
[1767692309184,7.74159342,3214.0,3213.1,0.99466267]
[1767692309501,7.74159342,3214.0,3213.4,0.002]
[1767692309718,0.001,3213.5,3213.4,0.002]
[1767692311197,0.92197868,3213.7,3213.4,0.002]
[1767692313380,0.4236184,3213.6,3213.4,0.002]
[1767692313581,0.08437664,3213.6,3213.4,0.002]
[1767692314214,3.11162122,3213.8,3213.4,0.002]
[1767692314512,3.1115316,3213.9,3213.4,0.002]
[1767692315612,0.815,3214.0,3213.4,1.00145065]
[1767692317285,3.92641274,3214.0,3213.4,1.00145065]
[1767692317486,0.815,3214.0,3213.4,1.00145065]
[1767692317690,3.92641891,3214.0,3213.4,1.00145065]
[1767692318025,0.815,3214.0,3213.4,1.00145065]
[1767692318818,3.92642824,3214.0,3213.4,1.00145065]
[1767692319019,0.815,3214.0,3213.4,1.00145065]
[1767692319403,3.11112055,3214.3,3213.4,1.00145065]
[1767692320607,3.11093821,3214.5,3213.4,1.00145065]
[1767692321121,6.22187642,3214.5,3213.6,0.99945065]
[1767692321305,0.9432306,3214.4,3213.6,0.99945065]
[1767692322137,0.001,3214.2,3213.6,0.99945065]
[1767692325099,4.8690784,3214.6,3213.8,0.99945065]
[1767692325307,3.9258478,3214.6,3213.8,0.99945065]
[1767692325621,0.815,3214.6,3213.8,0.99945065]
[1767692325833,3.11078638,3214.7,3213.8,0.99945065]
[1767692325995,0.9432306,3215.0,3213.8,0.99945065]
[1767692325996,0.815,3214.8,3213.8,0.99945065]
[1767692326191,0.815,3214.8,3214.0,0.99945065]
[1767692327629,3.11071017,3214.7,3214.0,0.99945065]
[1767692330950,3.92562373,3214.8,3214.0,0.99945065]
[1767692330951,3.92565833,3214.8,3214.0,0.99945065]
[1767692331824,7.03631666,3214.8,3214.0,0.99945065]